[Event "Mitropa Cup Open 2022"]
[Site "Corte"]
[Date "2022.05.08"]
[Round "9.4"]
[White "Schreiner, Peter"]
[Black "Deuer, Marius"]
[Result "0-1"]
[ECO "A00"]
[WhiteElo "2428"]
[BlackElo "2359"]
[Annotator "TA"]
[PlyCount "188"]
[EventDate "2022.04.30"]
[EventType "team-tourn"]
[EventCountry "FRA"]
[SourceTitle "playchess.com"]
[Source "ChessBase"]
[SourceQuality "1"]
[WhiteTeam "Austria"]
[BlackTeam "Germany"]
[WhiteTeamCountry "AUT"]
[BlackTeamCountry "GER"]
[TimeControl "40/5400+30:1800+30"]

{[%evp 17,188,6,7,0,0,0,20,27,68,79,74,67,83,85,87,71,136,129,137,138,232,187,189,191,189,184,181,187,237,242,232,243,532,294,268,275,303,318,314,309,314,318,342,324,329,271,303,269,269,256,314,257,243,18,22,16,23,23,26,0,0,-43,-43,-50,-55,-70,-46,-49,-43,-43,-43,-43,-43,-43,-49,-80,-80,-80,-80,-80,-80,-80,-80,-160,-80,-12838,-80,-229,-80,-80,-80,-80,-80,-80,-80,-80,-80,-80,-80,-80,-80,-80,-18,-80,-80,-80,-80,-80,-80,-80,-80,-80,-80,-80,0,-80,-80,-80,-17,-80,-80,-80,-80,-80,-80,-80,-80,-80,-80,-80,-80,-80,-80,-80,0,0,0,-80,0,-80,-80,-80,-80,-80,-80,-80,-80,-94,-63,-63,0,-8,0,-64,0,-15,0,0,0,0,0,-248,0,-395,-11,-13,0,-248,0,-12847,-12847,-12848,-12848]} 1. g3 {[%emt 0:00:20]} Nf6 {[%emt 0:00:34]} 2. Bg2 {[%emt 0:00:17]} d5 {[%emt 0:00:49]} 3. Nf3 {[%emt 0:02:24]} c5 {[%emt 0:01:55]} 4. O-O {[%emt 0:00:55]} Nc6 {[%emt 0:00:59]} 5. d4 {[%emt 0:00:34]} cxd4 {[%emt 0:06:21]} 6. Nxd4 {[%emt 0:00:15]} e6 {[%emt 0:00:04]} 7. c4 {[%emt 0:04:13]} Bc5 {[%emt 0:00:42]} 8. Nxc6 {[%emt 0:03:34]} bxc6 {[%emt 0:00:05]} 9. Nc3 {[%emt 0:03:51]} O-O {[%emt 0:04:31]} 10. b3 {[%emt 0:07:56] E01: Catalan: Early deviations.} Ba6 {[%emt 0:05:48]} 11. Qc2 {[%emt 0:12:01]} dxc4 {[%emt 0:17:59]} 12. bxc4 {[%emt 0:04:49] The position is equal.} Qd4 {[%emt 0:06:18] [#]} 13. Na4 $1 {[%emt 0:03:22][%cal Bc3a4,Ba4b2,Bb2d3][%mdl 32]} Be7 {[%emt 0:02:55]} (13... Bxc4 $2 14. Be3 Qe5 15. Bxc5 $18) 14. Nb2 {[%emt 0:01:43]} Rab8 {[%emt 0:07:20] [#]} 15. Rb1 $146 {[%emt 0:13:33]} ({Predecessor:} 15. Rd1 Qb6 16. Nd3 Qd4 17. Bf4 Rbc8 18. Ne5 Qc5 19. Qa4 Qa3 20. Qb3 Qc5 21. Nd7 Nxd7 22. Rxd7 Bxc4 {0-1 (46) Fochtler,E (2280)-Kupreichik,V (2515) Schwaebisch Gmuend 1994}) 15... Bc5 {[%emt 0:16:59]} 16. Bd2 {[%emt 0:14:28][%cal Bc1d2,Bd2c3,Bc3a5][%mdl 32]} Rfd8 {[%emt 0:05:21]} (16... Ba3 $142 17. Bc3 Qc5) 17. Bc3 $16 {[%emt 0:04:25]} Qd7 {[%emt 0:02:16]} 18. Qa4 {[%emt 0:04:46][%csl LRa6,LRc6]} Bb7 {[%emt 0:07:24]} (18... Qc8 $16 {keeps fighting.}) 19. Nd3 {[%emt 0:07:13]} Bd4 {[%emt 0:00:11]} 20. Ba5 {[%emt 0:01:15]} Rdc8 {[%emt 0:05:11]} (20... c5 $2 21. Qxd7 Rxd7 22. Bc6 $1 $18 {[%mdl 512]}) 21. Rfd1 {[%emt 0:00:57]} Qe7 {[%emt 0:01:44] Inhibits c5.} 22. e3 $36 {[%emt 0:02:03][%mdl 2048] White is on the roll.} Bc5 {[%emt 0:01:13]} (22... Bb6 $142 23. Bxb6 axb6) 23. Nxc5 $18 {[%emt 0:02:34]} Qxc5 {[%emt 0:00:02]} 24. Bc3 {[%emt 0:02:13] A strong pair of Bishops.} e5 {[%emt 0:01:12] Against Bd4} (24... Ba8 25. Bd4 Qh5 26. Qxa7 Rb7) 25. Qb4 {[%emt 0:01:47]} Qxb4 {[%emt 0:01:57]} 26. Rxb4 {[%emt 0:00:06]} ({Not} 26. Bxb4 Ba6 $14) 26... a5 {[%emt 0:03:05]} 27. Rb6 {[%emt 0:00:37]} Ba8 {[%emt 0:00:27]} 28. Rxb8 {[%emt 0:01:38]} ({Resist} 28. Bxa5 Rxb6 29. Bxb6 Bb7 $18) 28... Rxb8 29. Bxe5 {[%emt 0:00:17]} Re8 {[%emt 0:00:15]} 30. Bxf6 {[%emt 0:00:47]} gxf6 {[%emt 0:00:08][%mdl 4096] Endgame KRB-KRB} 31. Rd6 {[%emt 0:00:30]} Rc8 {[%emt 0:00:51]} 32. Rxf6 {[%emt 0:00:18]} Rb8 {[%emt 0:00:34][%cal Bc8b8,Bb8b1,Bb1c1,Bc1c5][%mdl 32]} 33. Rf5 {[%emt 0:00:45]} ({Stronger than} 33. Bxc6 Kg7 34. Rd6 Rb6 $11) 33... Rb1+ {[%emt 0:00:56]} 34. Bf1 {[%emt 0:00:03]} c5 {[%emt 0:00:25]} 35. Rxc5 $2 {[%emt 0:00:47]} (35. f3 $1 $18) 35... Bf3 $11 {[%emt 0:00:53]} 36. Rb5 {[%emt 0:00:18]} Rc1 {[%emt 0:00:24]} 37. Rb2 {[%emt 0:00:19] Inhibits Be2.} a4 {[%emt 0:00:34][%cal Ba5a4,Ba4a3][%mdl 32]} 38. c5 {[%emt 0:01:02]} a3 {[%emt 0:00:27]} 39. Rd2 {[%emt 0:00:27][%cal Oe3e4]} Rxc5 {[%emt 0:00:22]} 40. g4 {[%emt 0:00:34]} Rc1 {[%emt 0:00:43]} 41. h3 {[%emt 0:13:28]} Kg7 {[%emt 0:08:12]} 42. Rd3 {[%emt 0:03:07]} Be2 {[%emt 0:01:48]} 43. Rxa3 {[%emt 0:00:06]} Bxf1 $15 {[%emt 0:00:45] KRB-KR} 44. Kh2 {[%emt 0:01:50]} Rc2 {[%emt 0:00:30]} 45. Kg3 {[%emt 0:02:10]} Bc4 {[%emt 0:00:27]} 46. Ra5 {[%emt 0:06:23]} Bxa2 {[%emt 0:03:46]} 47. Rg5+ {[%emt 0:00:22]} Kf6 {[%emt 0:03:42]} 48. h4 {[%emt 0:01:01]} Rc1 {[%emt 0:01:55]} 49. Rg8 {[%emt 0:00:59]} Be6 {[%emt 0:03:01]} 50. h5 {[%emt 0:03:22]} (50. f3 $142) 50... h6 {[%emt 0:03:21]} (50... Ke5 $142 {White must now prevent ...Rg1+.} 51. f3 Rc3) 51. Kf4 $2 {[%emt 0:01:35][%mdl 8192]} (51. e4 $17) 51... Rf1 $2 {[%emt 0:00:22]} (51... Rc8 $1 $19 52. Rxc8 Bxc8) 52. Kg3 {[%emt 0:01:12]} (52. f3 $17) 52... Bd5 {[%emt 0:04:41]} (52... Rg1+ $1 $19 {and Black stays clearly on top.} 53. Kf4 Bb3) 53. Rd8 $17 {[%emt 0:00:19]} Rg1+ {[%emt 0:00:56]} 54. Kf4 {[%emt 0:00:20]} Bc4 {[%emt 0:00:27] Threatens to win with ...Be2.} 55. Rd6+ {[%emt 0:00:41]} Kg7 {[%emt 0:00:46]} 56. Rd2 {[%emt 0:00:25] Prevents Be2.} Bb3 {[%emt 0:02:23] ...Bd1 is the strong threat.} 57. f3 {[%emt 0:00:38]} Bd1 {[%emt 0:01:17]} 58. e4 {[%emt 0:00:25]} Rf1 {[%emt 0:00:40]} 59. Rd3 {[%emt 0:00:05]} Kf6 {[%emt 0:00:28]} (59... Be2 $17 60. Re3 Bc4) 60. Kg3 {[%emt 0:01:25]} (60. e5+ $11 {keeps the balance.} Ke7 61. Ra3) 60... Be2 {[%emt 0:00:29]} 61. Re3 {[%emt 0:00:18]} Bc4 {[%emt 0:00:29]} 62. Rc3 {[%emt 0:00:22]} Be6 {[%emt 0:00:19]} 63. Kf4 {[%emt 0:00:25]} Rd1 {[%emt 0:00:21]} 64. Ra3 {[%emt 0:00:20]} Bc4 {[%emt 0:00:32]} 65. Rc3 {[%emt 0:00:12]} Be2 {[%emt 0:00:31]} (65... Bb5 $17) 66. Rc6+ {[%emt 0:00:54]} (66. e5+ $1 $11 {remains equal.} Kg7 67. e6) 66... Kg7 {[%emt 0:00:01] Strongly threatening ...Rd3.} 67. Rc2 {[%emt 0:00:30]} Bf1 {[%emt 0:00:42]} (67... Re1 $17) 68. Rb2 {[%emt 0:00:43]} (68. g5 $1 $11) 68... Rc1 {[%emt 0:00:31]} 69. Rb3 {[%emt 0:00:29]} Be2 {[%emt 0:00:45]} 70. Rb2 {[%emt 0:00:19]} Bc4 {[%emt 0:00:48]} 71. Ke3 {[%emt 0:00:54]} Rc3+ {[%emt 0:00:35]} 72. Kf4 {[%emt 0:00:28]} Bb3 {[%emt 0:00:28]} 73. Rd2 {[%emt 0:00:19]} Kf6 {[%emt 0:00:31]} 74. Rd6+ {[%emt 0:00:21]} Be6 $1 {[%emt 0:00:34]} 75. Rd8 {[%emt 0:00:32]} Bc4 {[%emt 0:00:25]} (75... Rb3 $17) 76. Rd6+ $11 {[%emt 0:00:25]} Kg7 {[%emt 0:00:33]} 77. Rd2 {[%emt 0:00:36] Against Be2} (77. Rc6 $11) 77... Rd3 {[%emt 0:00:01]} (77... Bb5 $17) 78. Rf2 {[%emt 0:00:55]} (78. Rxd3 $11 Bxd3 79. e5) 78... Bb3 {[%emt 0:00:01]} 79. Rf1 {[%emt 0:00:31]} Bd1 {[%emt 0:00:23]} 80. Rf2 {[%emt 0:00:16]} Kf6 {[%emt 0:00:37]} 81. Rf1 {[%emt 0:00:20]} Ke6 {[%emt 0:00:46]} 82. Rf2 {[%emt 0:00:20]} f6 {[%emt 0:01:01]} 83. Rf1 $1 {[%emt 0:00:11]} Kd6 {[%emt 0:00:39]} (83... Ke7 $15) 84. Rf2 {[%emt 0:00:18]} Ke6 {[%emt 0:00:18]} (84... Ke7 $11) 85. Rf1 $1 $15 {[%emt 0:00:15]} Kd6 {[%emt 0:00:03]} (85... Ke7 $15 {deserves consideration.}) 86. Rf2 $11 {[%emt 0:00:05]} Kc5 {[%emt 0:01:07]} 87. Rf1 {[%emt 0:00:18]} Kc4 {[%emt 0:00:32]} 88. Rf2 {[%emt 0:02:02]} Kc3 {[%emt 0:00:33]} 89. Rf1 $2 {[%emt 0:01:01] [#]} (89. Kf5 $11) 89... Kd2 $2 {[%emt 0:00:26]} ({Better is} 89... Be2 $1 $19 {[%cal Re2f1]} 90. Rf2 Kd2) 90. e5 $2 {[%emt 0:00:28][%mdl 8192]} (90. Kf5 $1 $11 {and White is okay.}) 90... fxe5+ $2 {[%emt 0:00:17]} (90... Ke2 $19 91. Rh1 Rxf3+ 92. Ke4 Re3+ 93. Kf5 Rxe5+ 94. Kg6 Rg5+ 95. Kxh6 Rxg4 96. Rh2+ Kf3) 91. Kxe5 {[%emt 0:00:05]} Bxf3 {[%emt 0:00:43] And now ...Ke3 would win.} 92. Rg1 $2 {[%emt 0:00:21] [#]} (92. Rb1 $11) 92... Ke2 $2 {[%emt 0:00:31]} (92... Ke3 $1 $19 93. Rc1 Rd5+ 94. Kf6 Kf4 95. Rc4+ Be4) 93. g5 $2 {[%emt 0:01:02][%mdl 8192]} (93. Rb1 $11) 93... Kf2 $19 {[%emt 0:00:28]} 94. Ra1 {[%emt 0:00:19]} Rd5+ {[%emt 0:00:34] What a fight!  Weighted Error Value: White=0.37/Black=0.36} 0-1

[Event "Mitropa Cup Open 2022"]
[Site "Corte"]
[Date "2022.05.08"]
[Round "9.5"]
[White "Pechac, Jergus"]
[Black "Baenziger, Fabian"]
[Result "1/2-1/2"]
[ECO "D02"]
[WhiteElo "2597"]
[BlackElo "2430"]
[Annotator "TA"]
[PlyCount "61"]
[EventDate "2022.04.30"]
[EventType "team-tourn"]
[EventCountry "FRA"]
[SourceTitle "playchess.com"]
[Source "ChessBase"]
[SourceQuality "1"]
[WhiteTeam "Slovakia"]
[BlackTeam "Switzerland"]
[WhiteTeamCountry "SVK"]
[BlackTeamCountry "SUI"]
[TimeControl "40/5400+30:1800+30"]

{[%evp 9,61,6,14,9,10,16,8,9,0,-6,12,19,24,7,17,6,25,10,15,14,2,16,19,19,24,34,23,16,29,23,23,0,15,23,24,26,27,0,26,0,23,17,21,0,13,0,16,0,12,-17,0,0,0,0]} 1. Nf3 {[%emt 0:00:26]} d5 {[%emt 0:00:08]} 2. d4 {[%emt 0:00:07]} Nf6 {[%emt 0:00:08]} 3. Bf4 {[%emt 0:00:06]} c5 {[%emt 0:00:09]} 4. e3 {[%emt 0:00:09]} Nc6 {[%emt 0:00:32]} 5. Nbd2 {[%emt 0:00:10]} cxd4 {[%emt 0:00:47]} 6. exd4 {[%emt 0:00:07] D02: 1 d4 d5 2 Nf3 sidelines, including 2...Nf6 3 g3 and 2...Nf6 3 Bf4.} Bf5 {[%emt 0:00:06]} 7. Bb5 {[%emt 0:00:18]} e6 {[%emt 0:06:54]} 8. Ne5 {[%emt 0:00:11]} Qb6 {[%emt 0:03:27][%csl LRb5,LRd4]} 9. c4 {[%emt 0:00:06]} dxc4 {[%emt 0:04:43]} 10. Bxc6+ {[%emt 0:01:47]} bxc6 {[%emt 0:00:06]} 11. Ndxc4 {[%emt 0:00:07] Pair of Knights!} Qa6 {[%emt 0:05:44]} 12. Qe2 {[%emt 0:00:13][%cal Oc4d6] [#] aiming for Nd6+!} Bb4+ {[%emt 0:07:50]} 13. Bd2 {[%emt 0:00:06]} Bxd2+ {[%emt 0:00:18] [#]} 14. Qxd2 $146 {[%emt 0:00:04] Strongly threatening Nd6+.} ({Predecessor:} 14. Nxd2 Qb5 15. Nb3 O-O 16. Rc1 Rfc8 17. Rxc6 Qa4 18. Rxc8+ Rxc8 19. O-O Qxa2 20. Nc5 {1-0 (62) Aronian,L (2775)-Inarkiev,E (2663) Moscow 2019}) 14... O-O {[%emt 0:01:16]} 15. Qa5 {[%emt 0:00:05]} Qb5 {[%emt 0:05:12]} 16. O-O {[%emt 0:04:23]} Be4 {[%emt 0:12:29]} 17. Rfc1 {[%emt 0:03:47]} Bd5 {[%emt 0:03:28]} 18. a4 {[%emt 0:00:11]} Qb7 {[%emt 0:02:26]} 19. Qe1 {[%emt 0:00:06]} Bxc4 {[%emt 0:11:03]} 20. Nxc4 {[%emt 0:13:08][%cal Be5c4,Bc4a5,Ba5c6][%mdl 32]} Rad8 {[%emt 0:04:34]} 21. Na5 {[%emt 0:11:06][%csl LRb7,LRc6]} Qxb2 {[%emt 0:00:26]} 22. Rab1 {[%emt 0:02:55]} Qa3 {[%emt 0:02:11]} (22... Qxd4 23. Nxc6 Qxa4 24. Ra1 $16 (24. Nxd8 Rxd8 25. Ra1 Qd7 $16)) 23. Ra1 {[%emt 0:12:08]} Qb2 {[%emt 0:00:06]} ({Resist} 23... Qd6 24. Nb7 Qd7 25. Nxd8 Rxd8 26. Rab1 $16) 24. Rab1 {[%emt 0:04:00]} (24. Nxc6 $5 {[%cal Rc1b1]} Rd7 25. Rab1 $11) 24... Qa3 {[%emt 0:00:05]} ({Don't take} 24... Qxd4 25. Nxc6 Qxa4 26. Ra1 $16 (26. Nxd8 Rxd8 27. Ra1 Qd7 $16)) 25. Nxc6 {[%emt 0:00:04]} Rd7 {[%emt 0:00:31] The position is equal.} 26. Qa5 {[%emt 0:13:46]} Ne4 {[%emt 0:16:48]} 27. Qe1 {[%emt 0:00:06]} Nf6 {[%emt 0:00:04]} 28. Qa5 {[%emt 0:04:10]} Ne4 {[%emt 0:00:04]} 29. Re1 {[%emt 0:00:14]} Nf6 {[%emt 0:05:28]} 30. Re3 {[%emt 0:22:01]} Qd6 {[%emt 0:01:09]} 31. Ne5 {[%emt 0:05:36] An interesting draw.  Weighted Error Value: White=0.07 (flawless) /Black=0.03 (flawless)} 1/2-1/2

[Event "Mitropa Cup Open 2022"]
[Site "Corte"]
[Date "2022.05.08"]
[Round "9.5"]
[White "Erdos, Viktor"]
[Black "Moroni, Luca Jr"]
[Result "1/2-1/2"]
[ECO "C50"]
[WhiteElo "2587"]
[BlackElo "2581"]
[Annotator "TA"]
[PlyCount "28"]
[EventDate "2022.04.30"]
[EventType "team-tourn"]
[EventCountry "FRA"]
[SourceTitle "playchess.com"]
[Source "ChessBase"]
[SourceQuality "1"]
[WhiteTeam "Hungary"]
[BlackTeam "Italy"]
[WhiteTeamCountry "HUN"]
[BlackTeamCountry "ITA"]
[TimeControl "40/5400+30:1800+30"]

{[%evp 10,28,13,10,16,17,24,20,20,22,20,20,18,22,29,26,28,25,45,22,22]} 1. e4 {[%emt 0:05:26]} e5 {[%emt 0:00:48]} 2. Nf3 {[%emt 0:00:15]} Nc6 {[%emt 0:00:03]} 3. Bc4 {[%emt 0:00:11]} Bc5 {[%emt 0:00:04]} 4. d3 {[%emt 0:00:07]} Nf6 {[%emt 0:00:04]} 5. Nc3 {[%emt 0:00:06]} d6 {[%emt 0:02:24]} 6. Na4 {[%emt 0:01:46]} Bb6 {[%emt 0:00:06] C50: Hungarian Defence and Giuoco Pianissimo.} 7. a3 {[%emt 0:00:41]} Be6 {[%emt 0:00:19]} 8. Bxe6 {[%emt 0:01:42]} fxe6 {[%emt 0:00:02]} 9. O-O {[%emt 0:01:50]} O-O {[%emt 0:00:03]} 10. b4 {[%emt 0:03:08]} Qe8 {[%emt 0:00:25]} 11. c3 {[%emt 0:02:06] [#]} Qh5 $5 $146 {[%emt 0:05:55][%mdl 8] An interesting novelty.} ({Predecessor:} 11... Ne7 12. Nb2 c6 13. Nc4 Bc7 14. Re1 b5 15. Ncd2 a5 16. Bb2 Nh5 17. g3 Qf7 {1-0 (39) Noritsyn,N (2512)-Erigaisi,A (2559) Chess.com INT 2020}) 12. Ra2 {[%emt 0:05:51]} h6 {[%emt 0:05:52]} 13. Re1 {[%emt 0:06:53]} Rf7 {[%emt 0:05:03]} 14. h3 Raf8 {Weighted Error Value: White=0.03 (flawless) /Black=0.05 (flawless)} 1/2-1/2

[Event "Mitropa Cup Open 2022"]
[Site "Corte"]
[Date "2022.05.08"]
[Round "9.6"]
[White "Pelletier, Yannick"]
[Black "Druska, Juraj"]
[Result "1/2-1/2"]
[ECO "D41"]
[WhiteElo "2556"]
[BlackElo "2508"]
[Annotator "TA"]
[PlyCount "102"]
[EventDate "2022.04.30"]
[EventType "team-tourn"]
[EventCountry "FRA"]
[SourceTitle "playchess.com"]
[Source "ChessBase"]
[SourceQuality "1"]
[WhiteTeam "Switzerland"]
[BlackTeam "Slovakia"]
[WhiteTeamCountry "SUI"]
[BlackTeamCountry "SVK"]
[TimeControl "40/5400+30:1800+30"]

{[%evp 26,102,16,0,0,4,6,0,0,0,18,5,0,6,18,0,9,0,0,0,0,0,0,0,0,0,0,0,11,10,1,6,11,11,17,8,8,7,15,15,30,28,30,15,16,14,50,55,41,0,15,15,15,15,15,15,15,15,17,6,8,0,14,8,8,8,8,52,16,8,8,8,8,8,8,8,8,8,8]} 1. d4 {[%emt 0:00:07]} d5 {[%emt 0:00:18]} 2. c4 {[%emt 0:00:14]} e6 {[%emt 0:00:21]} 3. Nf3 {[%emt 0:00:28]} Nf6 {[%emt 0:00:07]} 4. Nc3 {[%emt 0:01:14]} c5 {[%emt 0:00:21]} 5. cxd5 {[%emt 0:00:25]} Nxd5 {[%emt 0:00:14]} 6. e4 {[%emt 0:00:21]} Nxc3 {[%emt 0:00:14]} 7. bxc3 {[%emt 0:00:04]} cxd4 {[%emt 0:00:04]} 8. cxd4 {[%emt 0:00:05]} Bb4+ {[%emt 0:00:04]} 9. Bd2 {[%emt 0:00:07]} Bxd2+ {[%emt 0:00:05]} 10. Qxd2 {[%emt 0:00:06]} O-O {[%emt 0:00:09]} 11. Bc4 {[%emt 0:00:21]} Nd7 {[%emt 0:00:21][%cal Bb8d7,Bd7f6,Bf6g4][%mdl 32]} 12. O-O {[%emt 0:00:24]} b6 {[%emt 0:00:04]} 13. Rad1 {[%emt 0:01:18]} Bb7 {[%emt 0:00:18]} 14. Rfe1 {[%emt 0:00:06]} Rc8 {[%emt 0:00:05] D41: Queen's Gambit Declined: Semi-Tarrasch with 5 cxd5.} 15. Bb3 {[%emt 0:00:04]} Re8 {[%emt 0:00:33]} 16. Re3 {[%emt 0:06:40]} Nf6 {[%emt 0:00:14]} 17. Qe1 {[%emt 0:01:18]} Ng4 {[%emt 0:00:06]} 18. Re2 {[%emt 0:10:13]} Ba6 {[%emt 0:00:06]} 19. Red2 {[%emt 0:00:04]} Bc4 {[%emt 0:00:13] [#]} 20. Bc2 $146 {[%emt 0:07:31]} ({Predecessor:} 20. Bxc4 Rxc4 21. Qe2 Rc7 22. Qd3 Nf6 23. d5 exd5 24. e5 Nd7 25. Qxd5 Qe7 26. Qb5 {½-½ (40) Praggnanandhaa,R (2612)-Duda,J (2760) Wijk aan Zee 2022}) 20... b5 {[%emt 0:13:12]} 21. h3 {[%emt 0:02:10]} Nf6 {[%emt 0:00:24]} 22. Ne5 {[%emt 0:16:45]} Bxa2 {[%emt 0:15:21]} 23. Ra1 {[%emt 0:00:45]} Bc4 {[%emt 0:00:07]} 24. Rxa7 {[%emt 0:02:02]} Re7 {[%emt 0:00:06]} 25. Qa1 {[%emt 0:13:37]} Rxa7 {[%emt 0:06:06]} 26. Qxa7 {[%emt 0:00:06]} Qc7 {[%emt 0:00:08]} 27. Qxc7 {[%emt 0:12:16]} Rxc7 {[%emt 0:00:05]} 28. f3 {[%emt 0:00:03]} Nd7 {[%emt 0:00:58]} 29. Nxc4 {[%emt 0:01:18]} bxc4 $11 {[%emt 0:09:47][%mdl 4096] Endgame KRB-KRN} 30. Ba4 {[%emt 0:08:33]} Kf8 {[%emt 0:11:12]} 31. Rc2 {[%emt 0:02:33]} Nb6 {[%emt 0:23:24]} 32. Bb5 {[%emt 0:00:04]} Ra7 {[%emt 0:00:04]} 33. Kf2 {[%emt 0:03:11]} g5 {[%emt 0:01:18]} 34. Ke2 {[%emt 0:04:54]} Ke7 {[%emt 0:05:13]} 35. Bxc4 {[%emt 0:01:01]} Ra4 {[%emt 0:00:19]} 36. Kd3 {[%emt 0:03:56]} Ra3+ {[%emt 0:00:01]} 37. Ke2 {[%emt 0:00:06]} (37. Rc3 $5 {[%cal Rc3a3]} Nxc4 38. Kxc4 $14) 37... Ra4 {[%emt 0:00:03]} 38. Bb5 {[%emt 0:00:40]} Rxd4 {[%emt 0:00:15]} 39. Rc7+ {[%emt 0:00:08]} Kf8 $1 {[%emt 0:11:13]} 40. Rc6 {[%emt 0:04:22] [#] Threatens to win with Ke3.} Na4 {[%emt 0:05:09]} 41. Rc8+ {[%emt 0:05:01]} Kg7 {[%emt 0:00:11]} 42. Rc7 {[%emt 0:02:12] With the idea Be8.} Kf8 {[%emt 0:01:30] Inhibits Be8.} 43. Rc8+ {[%emt 0:00:05]} Kg7 {[%emt 0:00:03]} 44. Be8 {[%emt 0:00:26] White wants to play Rc7.} f5 $1 {[%emt 0:01:40]} 45. Rc7+ {[%emt 0:20:13]} Kf6 {[%emt 0:00:07]} 46. exf5 {[%emt 0:00:16]} exf5 {[%emt 0:00:13]} 47. Bxa4 {[%emt 0:02:59] The position is equal.} Rxa4 {[%emt 0:00:02]} 48. Rxh7 {[%emt 0:00:08] KR-KR} Ra2+ {[%emt 0:06:12]} 49. Kf1 {[%emt 0:00:13]} g4 {[%emt 0:00:14]} 50. hxg4 {[%emt 0:02:09]} fxg4 {[%emt 0:00:07]} 51. fxg4 {[%emt 0:00:08]} Ra4 {[%emt 0:00:20] Weighted Error Value: White=0.04 (flawless) /Black=0.03 (flawless)} 1/2-1/2